Workbook

Sheet Markkinoinnin vuosikello
E1: Vinkki! Tarjoamme tukea vuosisuunnitteluun – varaa juttutuokio ›
B5: Markkinoinnin vuosikello
B6: Markkinoinnin vuosisuunnittelu luo pohjan tulokselliselle ja tehokkaalle markkinoinnille. Kätevän vuosikellopohjan avulla hahmotat toimenpiteet yhdessä näkymässä. Työkalun avulla esität suunnitelmasi helposti myös muille. Tämä markkinoinnin vuosikello -työkalu koostuu viidestä osiosta: Suunnittelu, Vuosikello, Kalenteri, Budjetin jakautuminen ja Inspiroidu-osio. Pääset niihin klikkaamalla tällä kansilehdellä olevia linkkejä tai vaihtamalla suoraan välilehteä.
B10: Suunnittelu › | F10: Vuosikello ›
B11: Avainkysymykset vuosisuunnittelun pohjaksi: voit käyttää jo laadittuja kysymyksiä vuosisuunnittelusi tueksi. Mieti sen jälkeen yrityksellesi sopivat vastaukset. Toimenpide-ehdotuksiin on listattu ratkaisuja tyypillisiin kysymyksiin. | F11: Markkinoinnin vuosikellopohja – kätevä kellonäkymä, johon kirjaat markkinoinnin painopisteet helposti yhteen näkymään.
B20: Kalenteri › | F20: Budjetin jakautuminen › | J20: Inspiroidu ›
B21: Budjetin allokointi: kalenterimaiseen taulukkoon voit suunnitella yrityksesi markkinoinnin toimenpiteitä ja bujdetointia viikko- ja kuukausitasoisesti. Taulukkoon jo syötetyt budjetit ovat esimerkkejä. | F21: Tällä sivulla olevat kaaviot päivittyvät Kalenteri-välilehdellä syötettyjen budjettien perusteella. Voit käyttää kaaviopohjia omassa suunnittelussasi ja raportoinnissasi. | J21: Kaipaatko lukemista, joka tukee markkinointisi suunnittelua? Olemme koostaneet muutaman linkin, joihin kannattaa tutustua. Voit listata perään myös omia linkkejäsi.

Sheet Suunnittelu
C1: Vinkki! Tarjoamme tukea vuosisuunnitteluun – varaa juttutuokio ›
B3: Avainkysymykset vuosisuunnittelun pohjaksi
B4: Kun teet vuosisuunnittelua, voit käyttää apuna jo laadittuja kysymyksiä. Mieti sen jälkeen yrityksellesi sopivat vastaukset. Toimenpide-ehdotuksiin on listattu ratkaisuja tyypillisiin kysymyksiin.
B6: Kysymys: | C6: Vastausesimerkit – Täytä tähän omasi | D6: Toimenpide- ja ratkaisuehdotukset
B7: Yrityksen strategiset tavoitteet ensi vuodelle
B8: Mitkä ovat yrityksen strategiset tavoitteet seuraavalle vuodelle?
C9: Myynnin kasvattaminen | D9: Mainonnan keinojen monipuolistaminen; monimedialliset kampanjat, kampanjoiden keston ja budjetin kasvattaminen, re-targetointi
C10: Brändimielikuvan / markkina-aseman vahvistaminen | D10: Monimediakampanja, tarinat brändin takaa kuluttajien saataville
C11: Tuotteen/palvelun lanseeraaminen | D11: Taktinen monimediakampanja, jossa aktiivinen ohjaus kivijalkaan tai verkkokauppaan. Suuret mediat vetoroolissa
C12: Uuden kohderyhmän tavoittaminen | D12: Näkemys kohderyhmästä (mediankäyttö, kulutus, asenteet) ja kohdennettu kampanja kohderyhmälle mieluisimmissa medioissa
C13: Verkkokaupan vahvistaminen | D13: Taktinen digipainotteinen kampanja, jossa vahvat ohjaukset suoraan verkkokauppaan, re-targetointi niille, jotka kiinnostuneet, Yleisöreportteri
C14: …
B16: Miten tavoitteet ovat muuttuneet viime vuodesta? | C16: Uusi kohderyhmä | D16: Tarvitaan näkemystä siitä miten uusi kohderyhmä käyttää mediaa, mitkä ovat heidän asenteensa/arvonsa ja mikä ohjaa kulutusta
C17: Laajentuminen uudelle alueelle | D17: Selvitetään mitkä mediat tavoittavat uudella alueella. Mitkä mahdollisuudet kohdentamiseen/monimediallisuuteen?
C18: Uusi brändi-ilme /tuotepakkaus/muu visu | D18: Monimediakampanja, jossa laajan peiton mediat mukana, jotka välittävät uuden visuaalisen ilmeen tehokkaasti
B19: Aseta tulevan vuoden tavotteet prioriteettijärjestykseen, jotta voit aloittaa toimenpiteiden määrittelyn (tai suunnittelun) kaikkein tärkeimmästä tavoitteesta. | C19: Tavoite 1)
C20: Tavoite 2)
C21: Tavoite 3)
B23: Markkinatilanne
B24: Mikä on oman brändin/palvelun/tuotteen asema markkinassa? | C24: Haastaja, kentällä paljon kilpailua | D24: Kartoitetaan mahdollisuuksien mukaan toimialan panostustrendejä ja kilpailjoiden toimenpiteitä. Etsitään näistä tapa erottua
C25: Markkinajohtaja | D25: Potentiaali kokeilla median tarjoamia uusia mahdollisuuksia, unohtamatta kuitenkaan riittävää peittoa kampanjoissa
C26: Uusi tuote markkinalla, kuluttajat eivät tunne | D26: Varmistettava riittävä budjetti ja fokus oikeaan kohderyhmään ja medioihin. Kirkas viesti.
B28: Mitä haasteita toimialalla on näkyvissä? | C28: Lakimuutokset
C29: Kilpailijoiden toimenpiteet
C30: Jakelutiet/kaupan ikkunat
B31: Mitkä ovat asiakkaan parhaat sesongit?
B33: Opit edellisestä vuodesta
B34: Mitkä ovat tärkeimmät opit kuluneelta/edelliseltä vuodelta?
B35: Mitkä toimenpiteet ovat toimineet ja miksi?
B36: Mitä olisitte halunneet kokeilla mutta se ei ollut vielä mahdollista?
B37: Tavoitteiden mittaaminen | D37: Vinkki! Hyödynnä Inspiroidu-välilehden lisämateriaaleja
B38: Mitä mittareita on käytetty onnistumisen mittaamiseen?
B39: Antavatko aikaisemmin käytetyt mittarit riittävästi tietoa onnistumisesta?
B40: Miten tavoitteiden mittaamista pitäisi muuttaa?
B41: Millaiset mittarit asetamme ja miten seuraamme niitä? | D41: Kampanjakohtaiset KPI:t, johdonmukainen raportointi ja valmius reagoida tuloksiin.
B42: Kanavat ja mediat | D42: Vinkki! Hyödynnä Kalenteri-välilehden näkymää suunnittelussa
B43: Mitkä mediat ovat toimineet parhaiten: onnistuneet nostamaan myyntiä ja/tai palvelun kysyntää?
B44: Mitkä toimenpiteet tai mediat eivät ole toimineet toivotusti? Miksi?
B46: Onko jo nyt tietoa kampanjoissa käytettävien materiaalien formaateista ja/tai toimitusaikatauluista? | C46: TV/Video:
C47: Radio (audio):
C48: Digi:
C49: Printti:
C50: Some:
C51: Muu, mikä?:
B53: Suunnittelukauden budjetointi | D53: Media ja suunnittelubudjetti / kk
B54: Miten paljon budjettia varataan eri medioihin?
B56: Sosiaalinen media
B57: Paikallislehdet
B58: Valtakunnalliset lehdet
B59: TV
B60: Radio
B61: jne...

Sheet Vuosikello
D1: Vinkki! Tarjoamme tukea vuosisuunnitteluun – varaa juttutuokio ›
B3: Markkinoinnin vuosikello
B4: Markkinoinnin vuosikellonäkymään voit kirjata markkinoinnin painopisteet ja tärkeät ajankohdat. Tueksesi olemme jo lisänneet näkymään tiettyjä merkittäviä teemoja.
D6: Joulukuu | F6: Tammikuu
F7: Uusivuosi
B8: Marraskuu | H8: Helmikuu
B11: Isänpäivä
B12: Black Friday | D12: Joululomat | H12: Ystävänpäivä
B17: Lokakuu | H17: Maaliskuu
B20: Syyslomaviikot
H22: Kevätpäiväntasaus
B23: Pyhäinpäivä / Halloween
B26: Syyskuu | H26: Huhtikuu
B28: Yrittäjän päivä
B35: Elokuu | H35: Toukokuu
D37: Heinäkuu | F37: Kesäkuu
B38: Lukuvuoden aloitus | H38: Äitienpäivä
F41: Juhannus

Sheet Kalenteri
C1: Vinkki! Lisää tietoa ja ideoita – varaa juttutuokio ›
A2: KALENTERI | B2: Koosta tähän omat toimenpiteesi: | C2: Budjetti | D2: Käytössä olevat formaatit | E2: Tammikuu | I2: Helmikuu | M2: Maaliskuu | Q2: Huhtikuu | U2: Toukokuu | Z2: Kesäkuu | AD2: Heinäkuu | AH2: Elokuu | AM2: Syyskuu | AQ2: Lokakuu | AV2: Marraskuu | AZ2: Joulukuu
B3: Alla esimerkkejä. | C3: Voit allokoida budjettiasi tässä. Katso kaaviot, Budjetin jakautuminen -välilehdeltä. Taulukkoon jo syötetyt budjetit ovat esimerkkejä. | D3: (spottipituus, koko jne.)
B4: Valtakunnallinen kampanja
B5: Alueellinen kampanja
B7: Brändäävä mainonta | C7: 20000
B8: Taktinen mainonta | C8: 22000
B9: Hakusanamainonta | C9: 10000
B11: Valtakunnallinen mainonta:
B12: Mediat
B13: TV
B14: TV Mainoskatkomainonta | C14: 5000
B15: TV Ohjelmallinen yhteistyö
B16: …
B17: BUDJETTI YHTEENSÄ | C17: =SUM(C14:C16) -> 5000
B19: Radio
B20: Spottikampanja radiossa | C20: 2000
B21: Ohjelmayhteistyö radiossa
B22: …
B23: BUDJETTI YHTEENSÄ | C23: =SUM(C20:C22) -> 2000
B25: Printti
B26: Sanomalehtimainonta | C26: 1000
B27: Aikakauslehtimainonta | C27: 1000
B28: Natiiviartikkelit PRINTTI
B29: …
B30: BUDJETTI YHTEENSÄ | C30: =SUM(C26:C29) -> 2000
B32: Digi
B33: Display-mainonta | C33: 1000
B34: Ohjelmallinen mainonta | C34: 2000
B35: Natiivimainonta | C35: 1000
B36: Vaikuttajamarkkinointi
B37: Video (In-stream / Out-stream) | C37: 2000
B38: Some -kampanjat | C38: 1000
B39: …
B40: BUDJETTI YHTEENSÄ | C40: =SUM(C33:C39) -> 7000
B43: Alueellinen mainonta:
B44: Mediat
B45: TV
B46: TV Mainoskatkomainonta | C46: 4000
B47: …
B48: BUDJETTI YHTEENSÄ | C48: =SUM(C46:C47) -> 4000
B50: Radio
B51: Spottikampanja radiossa | C51: 5000
B52: …
B53: BUDJETTI YHTEENSÄ | C53: =SUM(C51:C52) -> 5000
B55: Printti
B56: Sanomalehtimainonta | C56: 6000
B57: …
B58: BUDJETTI YHTEENSÄ | C58: =SUM(C56:C57) -> 6000
B60: Digi
B61: Display-mainonta | C61: 1000
B62: Ohjelmallinen mainonta | C62: 3500
B63: Video (In-stream / Out-stream) | C63: 1000
B64: Some-kampanjat
B65: …
B66: BUDJETTI YHTEENSÄ | C66: =SUM(C61:C65) -> 5500
B68: Muut omat toimenpiteet
B69: Uutiskirje nykyasiakkaille
B70: Uutiskirje kohderyhmälle X
B71: Tapahtuma X | C71: 2000
B72: Tapahtuma Y
B73: Tarjouspäivät, kaupan aktiviteetit, teemaviikot | C73: 1000
B74: Ulkoinen viestintä / PR
B75: Sisäinen viestintä
B77: BUDJETTI YHTEENSÄ | C77: =SUM(C69:C76) -> 3000
B79: KAIKKI BUDJETIT YHTEENSÄ | C79: =SUM(C17+C23+C30+C40+C48+C53+C58+C66+C77) -> 39500

Sheet Budjetin jakautuminen
G1: Vinkki! Tarjoamme tukea vuosisuunnitteluun – varaa juttutuokio ›
B3: Markkinoinnin budjetti
B4: Tällä sivulla olevat kaaviot päivittyvät Kalenteri-välilehdellä syötettyjen budjettien perusteella. Voit käyttää kaaviopohjia omassa suunnittelussasi ja raportoinnissasi.
B25: Huom! Jos kaavio ei toimi tai se näkyy väärin, varmistathan ettei Kalenteri-taulukossa tekemäsi muutokset ole rikkoneet siellä Budjetti yhteensä -riveille tehtyjä kaavoja.

Sheet Inspiroidu
C1: Vinkki! Tarjoamme tukea vuosisuunnitteluun – varaa juttutuokio ›
B3: Inspiroidu
B5: Kiinnostavaa luettavaa suunnittelun tueksi!
B7: Tässä listaus linkeistä materiaaleihin ja artikkeleihin, joka tukevat markkinointisi suunnittelua. Kannattaa tutustua! Voit listata perään myös omia linkkejäsi.
B9: Artikkeleita ja työkaluja | E9: Hyödyllisiä sivustoja
B10: Markkinoijan muistilista jokaiselle vuodenajalle | E10: media.sanoma.fi
B11: Opas markkinoinnin strategiseen suunnitteluun | E11: IAB.fi
B12: Näin muodostat näkemyksen markkinointiisi tutkitun tiedon avulla | E12: Aikakausmedia.fi
B13: Markkinoijan tietopankki | E13: Screenforce.fi
B14: Laske markkinointisi tuotto ROI-laskuri | E14: RadioMedia.fi
B15: Ad Manager - suunnittele ja osta itse digimainontaa Sanoman medioihin
B18: Tarjoamme tukea vuosisuunnitteluun – varaa juttutuokio ›

Sheet Aputaulukko (hidden)
B1: Valtakunnallinen | C1: Alueellinen | D1: Muut toimenpiteet | E1: Yhtensä
A2: TV | B2: =Kalenteri!C17 -> 5000 | C2: =Kalenteri!C48 -> 4000 | E2: =SUM(B2:C2) -> 9000
A3: Radio | B3: =Kalenteri!C23 -> 2000 | C3: =Kalenteri!C53 -> 5000 | E3: =SUM(B3:C3) -> 7000
A4: Printti | B4: =Kalenteri!C30 -> 2000 | C4: =Kalenteri!C58 -> 6000 | E4: =SUM(B4:C4) -> 8000
A5: Digi | B5: =Kalenteri!C40 -> 7000 | C5: =Kalenteri!C66 -> 5500 | E5: =SUM(B5:C5) -> 12500
A6: Yhteensä | B6: =SUM(B2:B5) -> 16000 | C6: =SUM(C2:C5) -> 20500 | D6: =Kalenteri!C77 -> 3000
